bitfinex/quotes_SOLUSD_20251120
["timestamp","ask_amount","ask_price","bid_price","bid_amount"]
[1763634748154,19.18133893,142.2,142.17,4.87746006]
[1763634749150,18.48133893,142.2,142.17,4.87746006]
[1763634751045,18.48133893,142.2,142.17,0.72]
[1763634751570,18.48133893,142.2,142.17,4.87746006]
[1763634751851,9.78882769,142.18,142.14,0.68]
[1763634752035,11.44882769,142.18,142.14,4.15746006]
[1763634752236,0.7,142.17,142.14,4.15746006]
[1763634752449,9.78882769,142.16,142.14,4.83746006]
[1763634752627,11.44882769,142.16,142.12,0.68]
[1763634752828,12.14882769,142.16,142.13,4.15746006]
[1763634753137,7.03482237,142.15,142.13,4.15746006]
[1763634753343,18.48337093,142.16,142.13,4.83746006]
[1763634753539,18.48337093,142.16,142.13,4.15746006]
[1763634753748,0.7,142.15,142.13,4.15746006]
[1763634754153,36.76918972,142.16,142.13,4.15746006]
[1763634754451,19.18337093,142.16,142.13,4.15746006]
[1763634754650,9.78882769,142.14,142.11,4.25746006]
[1763634754834,11.44882769,142.14,142.11,0.1]
[1763634755039,7.03581228,142.13,142.11,0.1]
[1763634755632,19.18427066,142.14,142.11,0.78]
[1763634756043,19.18427066,142.14,142.11,4.93746006]
[1763634756240,18.48427066,142.14,142.11,4.25746006]
[1763634756437,18.48427066,142.14,142.12,0.68]
[1763634756641,18.48427066,142.14,142.11,4.25746006]
[1763634756844,18.48427066,142.14,142.12,0.68]
[1763634757636,18.48427066,142.14,142.12,4.83746006]
[1763634758135,18.48427066,142.14,142.13,0.68]
[1763634758853,18.48427066,142.14,142.12,4.15746006]
[1763634759071,18.48427066,142.14,142.12,0.68]
[1763634760037,18.48427066,142.14,142.11,4.93746006]
[1763634760669,19.18427066,142.14,142.11,0.1]
[1763634760838,0.7,142.13,142.11,0.1]
[1763634761253,19.18427066,142.14,142.11,0.1]
[1763634761568,19.18427066,142.14,142.11,0.78]
[1763634763038,19.18427066,142.14,142.11,0.1]
[1763634763365,36.77256389,142.14,142.11,0.1]
[1763634763569,9.39544297,142.14,142.11,0.1]
[1763634763774,9.78882769,142.13,142.11,4.93746006]
[1763634764365,8.69544297,142.14,142.12,0.68]
[1763634764573,9.78882769,142.14,142.13,4.15746006]
[1763634764864,9.78882769,142.14,142.13,4.83746006]
[1763634765269,1.66,142.16,142.13,4.83746006]
[1763634765573,9.78882769,142.16,142.15,4.15746006]
[1763634766070,9.78882769,142.17,142.15,4.83746006]
[1763634766363,9.78882769,142.17,142.16,0.68]
[1763634766601,9.78882769,142.17,142.16,4.83746006]
[1763634768041,9.78882769,142.17,142.16,0.68]
[1763634768651,7.03386528,142.17,142.15,4.15746006]
[1763634768857,7.03386528,142.17,142.15,4.83746006]
[1763634769060,7.03386528,142.17,142.15,0.68]
[1763634769578,16.82229605,142.18,142.15,4.83746006]
[1763634769948,16.82229605,142.18,142.16,0.68]
[1763634770682,16.82229605,142.18,142.15,4.15746006]
[1763634770872,16.82229605,142.18,142.15,4.83746006]
[1763634772684,16.82229605,142.18,142.16,0.68]
[1763634773177,16.82229605,142.18,142.15,4.83746006]
[1763634773867,18.48229605,142.18,142.15,4.83746006]
[1763634774666,18.48229605,142.18,142.15,4.15746006]
[1763634774884,18.48229605,142.18,142.16,0.68]
[1763634775384,4.15746006,142.24,142.17,4.15746006]
[1763634775385,34.94065318,142.23,142.17,4.15746006]
[1763634775590,18.47969318,142.23,142.2,4.15746006]
[1763634775765,19.14969318,142.23,142.2,4.83746006]
[1763634776593,19.14969318,142.23,142.19,0.68]
[1763634776886,36.72685692,142.23,142.19,4.83746006]
[1763634777185,19.14969318,142.23,142.19,4.83746006]
[1763634780478,19.14969318,142.23,142.2,4.83746006]
[1763634780782,11.44882769,142.23,142.21,4.15746006]
[1763634780986,17.57393815,142.26,142.22,4.15746006]
[1763634780987,9.78882769,142.26,142.22,4.15746006]
[1763634781291,9.78882769,142.26,142.24,4.15746006]
[1763634781784,9.78882769,142.26,142.24,4.83746006]
[1763634781959,0.67,142.25,142.22,4.15746006]
[1763634782382,7.69987734,142.25,142.22,4.83746006]
[1763634782574,9.78882769,142.26,142.22,4.83746006]
[1763634782775,17.48851582,142.26,142.22,4.83746006]
[1763634783382,17.48851582,142.26,142.22,4.15746006]
[1763634783586,17.48851582,142.26,142.23,0.68]
[1763634784177,9.78882769,142.24,142.2,4.15746006]
[1763634784377,7.03086549,142.23,142.2,4.83746006]
[1763634784684,7.03086549,142.23,142.21,0.68]
[1763634785074,16.81938395,142.24,142.21,4.83746006]
[1763634785269,9.78882769,142.24,142.21,4.83746006]
[1763634785482,16.81922929,142.24,142.22,0.68]
[1763634786006,9.78882769,142.22,142.18,0.68]
[1763634786168,9.78882769,142.22,142.18,4.83746006]
[1763634786369,16.82057737,142.22,142.19,4.83746006]
[1763634786899,16.82057737,142.22,142.19,4.15746006]
[1763634787118,0.67,142.25,142.21,4.15746006]
[1763634787390,9.78882769,142.24,142.22,4.15746006]
[1763634787691,9.78882769,142.24,142.22,4.83746006]
[1763634788268,16.81959181,142.24,142.21,4.15746006]
[1763634788690,16.81959181,142.24,142.21,4.83746006]
[1763634788899,16.81959181,142.24,142.22,4.83746006]
[1763634789592,1.66,142.25,142.19,1.66]
[1763634789593,8.69007115,142.25,142.23,4.83746006]
[1763634789787,9.78882769,142.24,142.23,4.83746006]
[1763634789995,9.78882769,142.24,142.23,0.68]
[1763634791482,9.78882769,142.24,142.22,3.34199069]
[1763634791909,9.78882769,142.24,142.23,0.68]
[1763634792222,18.12096,142.28,142.23,3.34199069]
[1763634792383,18.12096,142.28,142.24,0.68]
[1763634792384,16.81740553,142.28,142.24,0.68]
[1763634792704,16.81740553,142.28,142.25,2.66199069]
[1763634792880,16.81740553,142.28,142.25,3.34199069]
[1763634796407,9.78882769,142.26,142.22,0.68]
[1763634796619,9.78882769,142.26,142.23,2.66199069]
[1763634797104,9.78882769,142.26,142.24,0.68]
[1763634797621,18.12096,142.28,142.24,0.68]
[1763634797918,0.67,142.3,142.26,2.66199069]
[1763634797919,11.44882769,142.29,142.26,2.66199069]
[1763634798378,18.47706944,142.29,142.27,0.68]
[1763634798584,18.47706944,142.29,142.27,3.34199069]
[1763634799508,18.47706944,142.29,142.23,19.23700592]
[1763634799509,18.47706944,142.29,142.24,7.03014127]
[1763634799810,0.67,142.28,142.24,3.34199069]
[1763634800012,0.67,142.28,142.24,2.66199069]
[1763634800224,21.80906013,142.29,142.25,0.69]
[1763634800410,0.67,142.28,142.25,0.69]
[1763634800610,7.02888873,142.27,142.25,0.69]
[1763634800799,7.69888873,142.27,142.23,0.69]
[1763634801111,9.35888873,142.27,142.23,3.35199069]
[1763634801329,10.45882769,142.26,142.23,0.69]
[1763634801518,9.78882769,142.26,142.23,0.69]
[1763634801705,9.78882769,142.26,142.23,3.35199069]
[1763634802597,7.02987697,142.25,142.23,3.35199069]
[1763634803131,10.45882769,142.24,142.21,2.66199069]
[1763634803293,10.45882769,142.24,142.2,3.35199069]
[1763634804143,10.45882769,142.24,142.21,0.69]
[1763634805418,7.03086549,142.23,142.21,0.69]
[1763634805924,7.03086549,142.23,142.2,2.66199069]
[1763634806105,7.03086549,142.23,142.2,3.35199069]
[1763634806304,7.03086549,142.23,142.2,2.66199069]
[1763634806608,7.03086549,142.23,142.21,0.69]
[1763634806819,13.12081838,142.22,142.15,0.69]
[1763634807026,13.12081838,142.22,142.14,3.35199069]
[1763634807027,12.45081838,142.18,142.14,3.35199069]
[1763634807329,11.44882769,142.18,142.14,3.35199069]
[1763634807506,12.11882769,142.18,142.14,3.35199069]
[1763634807918,0.67,142.17,142.13,2.66199069]
[1763634808118,9.78882769,142.16,142.13,2.66199069]
[1763634808319,11.44882769,142.16,142.13,0.69]
[1763634808713,7.03482237,142.15,142.13,3.35199069]
[1763634809539,7.03482237,142.15,142.11,18.22096]
[1763634809747,7.03482237,142.15,142.12,3.35199069]
[1763634810550,7.03482237,142.15,142.13,0.69]
[1763634811663,11.44882769,142.16,142.13,0.69]
[1763634812121,18.48319516,142.16,142.13,0.69]
[1763634812319,9.78882769,142.14,142.11,0.1]
[1763634812514,14.11081838,142.14,142.11,0.1]
[1763634812732,14.78081838,142.14,142.11,0.1]
[1763634812929,7.03581228,142.13,142.11,0.1]
[1763634813241,7.03581228,142.13,142.11,0.79]
[1763634814921,7.03581228,142.13,142.11,3.45199069]
[1763634815122,7.03581228,142.13,142.11,0.79]
[1763634815522,7.03581228,142.13,142.11,0.1]
[1763634816131,9.78882769,142.12,142.11,0.1]
[1763634816438,14.78081838,142.12,142.11,0.1]
[1763634816947,21.81712572,142.12,142.11,0.1]
[1763634817112,21.81712572,142.12,142.1,0.1]
[1763634817313,18.12096,142.09,142.08,0.1]
[1763634817513,9.78882769,142.08,142.06,0.1]
[1763634817726,4.32199069,142.07,142.06,0.1]
[1763634817937,9.78882769,142.07,142.06,0.1]
[1763634818124,11.44882769,142.07,142.06,0.1]
[1763634818919,18.48761138,142.07,142.06,0.1]
[1763634819846,11.44882769,142.07,142.06,0.79]
[1763634820020,11.44882769,142.07,142.06,0.1]
[1763634821232,18.48761138,142.07,142.06,0.1]
[1763634821677,11.44882769,142.07,142.06,0.1]
[1763634822945,18.48761138,142.07,142.06,0.1]
[1763634824760,11.44882769,142.07,142.06,3.45199069]
[1763634824941,7.03813761,142.09,142.06,3.45199069]
[1763634825145,9.78882769,142.08,142.07,0.69]
[1763634825351,9.78882769,142.08,142.06,2.76199069]
[1763634825352,14.78081838,142.08,142.06,0.1]
[1763634825654,14.11081838,142.08,142.06,0.1]
[1763634826134,14.78081838,142.08,142.06,0.1]
[1763634826336,12.11882769,142.08,142.06,0.1]
[1763634826542,2.66199069,142.07,142.06,0.1]
[1763634826744,17.49761138,142.07,142.06,0.1]
[1763634826953,20.15960207,142.07,142.06,0.1]
[1763634828146,21.83960207,142.07,142.06,0.1]
[1763634831156,19.17761138,142.07,142.06,0.1]
[1763634831361,74.6304798,142.07,142.02,0.69]
[1763634831563,12.45081838,142.05,142.02,0.69]
[1763634831744,14.13081838,142.05,142.02,0.69]
[1763634831943,9.78882769,142.03,142.01,0.1]
[1763634832243,11.46882769,142.03,142.01,0.76]
[1763634833049,18.50995514,142.03,142.01,0.76]
[1763634835177,35.19391849,142.07,142.01,0.76]
[1763634835178,11.46882769,142.07,142.01,7.80167292]
[1763634835360,11.46882769,142.07,142.04,2.66199069]
[1763634835544,11.46882769,142.07,142.05,0.66]
[1763634836147,18.50761138,142.07,142.05,0.66]
[1763634837162,18.50761138,142.07,142.05,3.32199069]
[1763634837361,16.82761138,142.07,142.05,3.32199069]
[1763634837661,17.59377034,142.1,142.06,3.32199069]
[1763634837866,16.82682766,142.09,142.07,2.66199069]
[1763634838064,16.82682766,142.09,142.06,2.66199069]
[1763634838364,16.82682766,142.09,142.07,0.66]
[1763634838561,16.82682766,142.09,142.07,3.32199069]
[1763634838948,16.82682766,142.09,142.08,0.66]
[1763634840168,9.78882769,142.09,142.08,0.66]
[1763634840351,7.03750104,142.1,142.08,3.32199069]
[1763634840550,7.03750104,142.1,142.08,0.66]
[1763634840756,16.82632873,142.1,142.09,0.66]
[1763634841243,9.78882769,142.1,142.09,0.66]
[1763634841443,16.82612536,142.1,142.09,0.66]
[1763634841870,9.78882769,142.1,142.09,0.66]
[1763634842057,8.71702817,142.11,142.09,0.66]
[1763634843570,9.78882769,142.13,142.1,2.66199069]
[1763634843747,18.50478931,142.13,142.1,2.66199069]
[1763634843946,18.50478931,142.13,142.11,0.66]
[1763634844369,18.50478931,142.13,142.11,3.32199069]
[1763634844548,18.50478931,142.13,142.12,0.66]
[1763634844750,18.50478931,142.13,142.11,0.66]
[1763634847266,11.46882769,142.13,142.11,0.66]
[1763634847582,18.50475982,142.13,142.11,0.66]
[1763634850080,18.50481765,142.13,142.11,0.66]
[1763634851256,11.46882769,142.13,142.11,0.66]
[1763634851689,18.50468548,142.13,142.11,0.66]
[1763634855361,18.50468548,142.13,142.09,4.16650374]
[1763634855682,18.50468548,142.13,142.07,0.66]
[1763634855683,13.95533143,142.11,142.07,0.66]
[1763634855884,13.95533143,142.09,142.06,0.66]
[1763634856091,5.82650374,142.08,142.04,4.82650374]
[1763634856474,5.82650374,142.08,142.05,0.66]
[1763634856667,1.66,142.08,142.05,0.66]
[1763634856989,1.66,142.08,142.05,4.82650374]
[1763634857181,1.66,142.08,142.05,4.16650374]
[1763634857360,1.66,142.08,142.02,26.30419463]
[1763634857361,1.66,142.08,142.06,4.82650374]
[1763634857558,8.69831692,142.08,142.06,4.82650374]
[1763634857872,18.48714461,142.08,142.07,0.66]
[1763634858061,18.48714461,142.08,142.06,4.16650374]
[1763634858261,18.48714461,142.08,142.06,4.82650374]
[1763634859588,18.48714461,142.08,142.06,0.66]
[1763634863488,19.17714461,142.08,141.97,113.05265642]
[1763634863672,9.78882769,142.07,142.03,4.16650374]
[1763634863876,9.78882769,142.07,142.04,4.16650374]
[1763634864384,9.78882769,142.07,142.04,0.72]
[1763634864976,7.03927917,142.06,142.04,4.88650374]
[1763634865587,7.03927917,142.06,142.04,4.16650374]
[1763634865767,16.82810686,142.06,142.05,0.72]
[1763634867796,16.82810686,142.06,142.04,4.16650374]
[1763634867969,16.82810686,142.06,142.04,4.88650374]
[1763634868670,16.82810686,142.06,142.05,0.72]
[1763634869481,16.82810686,142.06,142.04,4.16650374]
[1763634869674,16.82810686,142.06,142.04,4.84650374]
[1763634870084,16.82810686,142.06,142.05,0.68]
[1763634870374,16.82810686,142.06,142.04,4.84650374]
[1763634870594,16.82810686,142.06,142.05,0.68]
[1763634874472,16.82810686,142.06,142.03,0.68]
[1763634874694,16.82810686,142.06,142.04,4.16650374]
[1763634874871,16.82810686,142.06,142.02,0.68]
[1763634875078,9.78882769,142.05,142.02,4.84650374]
[1763634875596,9.78882769,142.03,142.01,0.1]
[1763634876197,1.66,142.02,142.01,0.1]
[1763634876504,8.70126179,142.02,142.01,0.1]
[1763634877977,8.70126179,142.02,142.01,4.94650374]
[1763634878174,7.03977472,142.05,142.01,4.94650374]
[1763634878379,18.48860241,142.05,142.04,4.16650374]
[1763634878579,18.48860241,142.05,142.04,4.84650374]
[1763634878978,18.48860241,142.05,142.04,0.68]
[1763634879898,7.03977472,142.05,142.04,0.68]
[1763634880090,7.03977472,142.05,142.04,4.84650374]
[1763634880598,7.03977472,142.05,142.04,0.68]
[1763634881303,16.82831855,142.06,142.04,0.68]
[1763634888210,2.36,142.05,142.01,0.1]
[1763634888395,9.78882769,142.04,142.01,0.1]
[1763634888594,1.66,142.03,142.01,0.1]
[1763634888793,9.78882769,142.02,142.01,0.1]
[1763634888994,1.66,142.03,142.01,4.94650374]
[1763634889192,1.66,142.04,142.02,0.68]
[1763634890011,9.78882769,142.05,142.03,4.16650374]
[1763634890211,18.48857976,142.06,142.04,0.71]
[1763634890212,8.69975207,142.06,142.04,0.71]
[1763634892905,8.69975207,142.06,142.01,0.1]
[1763634893085,8.69975207,142.06,142.04,0.71]
[1763634896109,26.29795001,142.06,142.01,4.26650374]
[1763634896314,26.29795001,142.06,142.03,0.71]
[1763634899498,26.29795001,142.06,142.03,4.87650374]
[1763634899696,8.69975207,142.06,142.03,0.71]
[1763634899892,8.69975207,142.06,142.04,0.71]
[1763634902902,7.03975207,142.06,142.04,0.71]
[1763634904619,16.82781035,142.07,142.04,0.71]
[1763634906017,34.42476959,142.07,142.04,0.71]
[1763634910016,35.09476959,142.07,142.04,0.71]
[1763634910520,34.42476959,142.07,142.04,0.71]
[1763634911015,16.82781035,142.07,142.04,0.71]
[1763634911315,16.82781035,142.07,142.04,4.87650374]
[1763634911520,16.82781035,142.07,142.04,0.71]
[1763634911699,16.82781035,142.07,142.05,0.71]
[1763634912920,35.09476959,142.07,142.04,0.71]
[1763634913494,34.42476959,142.07,142.04,0.71]
[1763634914124,35.09476959,142.07,142.04,0.71]
[1763634915907,34.42476959,142.07,142.04,0.71]
[1763634917427,35.09476959,142.07,142.04,0.71]
[1763634919126,7.03845274,142.08,142.04,3.37913004]
[1763634919631,7.03845274,142.08,142.05,0.71]
[1763634925227,24.63417346,142.08,142.05,0.71]
[1763634930648,9.78882769,142.1,142.05,25.34920755]
[1763634930819,9.78882769,142.12,142.09,2.66913004]
[1763634931015,10.44882769,142.14,142.1,0.71]
[1763634931219,1.66,142.13,142.1,0.71]
[1763634931774,2.32,142.13,142.1,0.71]
[1763634932113,7.03630734,142.12,142.1,0.71]
[1763634934128,7.03630734,142.12,142.08,0.71]
[1763634934129,0.66,142.11,142.08,0.71]
[1763634934317,19.49426507,142.12,142.08,0.71]
[1763634934318,16.82513503,142.12,142.08,0.71]
[1763634934518,35.07590339,142.12,142.08,3.37913004]
[1763634935039,35.07590339,142.12,142.09,0.71]
[1763634938744,37.74503343,142.12,142.08,0.71]
[1763634939733,13.11795773,142.11,142.08,0.71]
[1763634940038,14.77795773,142.11,142.08,0.71]
[1763634940431,2.66913004,142.1,142.07,0.71]
[1763634940637,2.66913004,142.1,142.04,0.71]
[1763634940643,24.634009,142.08,142.04,0.71]
[1763634940835,27.30313904,142.08,142.04,0.71]
[1763634941045,24.634009,142.08,142.04,3.37913004]
[1763634941434,24.634009,142.08,142.05,0.71]
[1763634945752,1.66,142.09,142.06,2.66913004]
[1763634945957,16.82583639,142.11,142.07,2.66913004]
[1763634946251,18.48583639,142.11,142.07,2.66913004]
[1763634946551,18.48583639,142.11,142.08,0.71]
[1763634947160,19.14583639,142.11,142.08,0.71]
[1763634948140,36.73784258,142.11,142.08,0.71]
[1763634948642,36.07784258,142.11,142.08,0.71]
[1763634949149,8.6970087,142.11,142.08,3.37913004]
[1763634949355,8.6970087,142.11,142.08,0.71]
[1763634949534,8.6970087,142.11,142.09,0.71]
[1763634949728,26.28901489,142.11,142.09,0.71]
[1763634955361,26.28901489,142.11,142.07,2.66913004]
[1763634955661,7.03779294,142.09,142.07,0.72]
[1763634955961,7.03779294,142.09,142.05,0.72]
[1763634956136,7.03779294,142.09,142.06,0.72]
[1763634960269,29.67140535,142.09,142.05,0.72]
[1763634960468,29.67140535,142.09,142.04,2.66913004]
[1763634960675,29.67140535,142.09,142.06,0.72]
[1763634961556,29.67140535,142.09,142.04,2.66913004]
[1763634961749,3.37913004,142.08,142.03,2.66913004]
[1763634961949,3.37913004,142.08,142.01,0.1]
[1763634961950,2.66913004,142.05,142.01,0.1]
[1763634962150,4.32913004,142.04,142.01,0.1]
[1763634962549,12.45795773,142.02,142.01,0.1]
[1763634962770,32.23891773,142.02,142.01,0.1]
[1763634962972,32.94891773,142.02,142.01,0.1]
[1763634963854,39.99017952,142.02,142.01,0.1]
[1763634964761,38.33017952,142.02,142.01,0.1]
[1763634964963,18.49008948,142.02,142.01,0.1]
[1763634965365,39.99017952,142.02,142.01,0.1]
[1763634965884,27.90978769,142.02,142.01,3.48913004]
[1763634966088,10.71495522,142.05,142.01,3.48913004]
[1763634966089,3.67512179,142.05,142.01,3.48913004]
[1763634966259,3.67512179,142.05,142.03,2.66913004]
[1763634966660,3.67512179,142.05,142.04,0.72]
[1763634970385,10.71489651,142.05,142.02,3.38913004]
[1763634970888,11.42489651,142.05,142.01,3.48913004]
[1763634971074,7.74977472,142.05,142.01,0.82]
[1763634971568,7.74977472,142.05,142.01,3.48913004]
[1763634972286,8.69977472,142.05,142.02,0.72]
[1763634973089,7.03977472,142.05,142.02,3.38913004]
[1763634973398,7.03977472,142.05,142.03,2.66913004]
[1763634973685,7.03977472,142.05,142.04,0.72]
[1763634974599,1.66,142.07,142.04,3.38913004]
[1763634974904,8.69893769,142.07,142.05,4.16961761]
[1763634975089,8.6984765,142.08,142.05,4.88961761]
[1763634975266,8.6984765,142.08,142.06,0.72]
[1763634977378,8.6984765,142.08,142.04,4.16961761]
[1763634977774,26.29419722,142.08,142.05,0.72]
[1763634977994,31.17381483,142.08,142.03,4.16961761]
[1763634978381,31.17381483,142.08,142.04,0.72]
[1763634978897,27.00419722,142.08,142.04,0.72]
[1763634979093,31.17381483,142.08,142.04,0.72]
[1763634979304,10.49882769,142.07,142.02,4.88961761]
[1763634979480,1.66,142.06,142.02,0.72]
[1763634979683,2.37,142.06,142.02,0.72]
[1763634979889,1.66,142.06,142.02,0.72]
[1763634981108,7.03977472,142.05,142.02,0.72]
[1763634981691,7.03977472,142.05,142.02,4.88961761]
[1763634981892,8.69943626,142.06,142.03,0.68]
[1763634982080,8.69943626,142.06,142.03,4.84961761]
[1763634982280,8.69943626,142.06,142.04,0.68]
[1763634982703,8.69943626,142.06,142.03,0.68]
[1763634983077,26.9876342,142.06,142.01,4.26961761]
[1763634983304,26.9876342,142.06,142.02,0.68]
[1763634985089,26.9876342,142.06,142.02,4.84961761]
[1763634985598,26.9876342,142.06,142.03,0.68]
[1763634985799,26.2976342,142.06,142.03,0.68]
[1763634985989,26.9876342,142.06,142.03,0.68]
[1763634988810,26.2976342,142.06,142.03,4.84961761]
[1763634988988,26.2976342,142.06,142.03,0.68]
[1763634990203,26.9576342,142.06,142.03,0.68]
[1763634994695,26.9576342,142.06,142.02,4.16961761]
[1763634994696,26.2976342,142.06,142.01,0.1]
[1763634995009,7.04027034,142.04,142.02,0.7]
[1763634996891,7.03977472,142.05,142.02,0.7]
[1763634997104,7.03977472,142.05,142.02,4.86961761]
[1763634997410,7.03977472,142.05,142.03,0.7]
[1763634998210,0.66,142.04,142.01,0.1]
[1763634998387,13.9584453,142.02,142.01,0.1]
[1763634998593,15.6184453,142.02,142.01,0.1]
[1763634998912,16.2784453,142.02,142.01,0.1]
[1763635000789,23.31970709,142.02,142.01,0.1]
[1763635001996,23.31970709,142.02,142.01,1e-08]
[1763635002904,27.90978769,141.99,141.98,0.1]
[1763635003086,33.7394053,141.99,141.98,0.1]
[1763635003291,34.3994053,141.99,141.98,0.1]
[1763635004390,34.3994053,141.99,141.98,1e-08]
[1763635004612,34.3994053,141.99,141.97,1e-08]
[1763635004613,10.44882769,141.98,141.97,1e-08]
[1763635004803,7.04374163,141.97,141.96,1e-08]
[1763635005020,13.53335924,141.97,141.96,1e-08]
[1763635005803,23.32218693,141.97,141.96,1e-08]
[1763635006021,18.49256932,141.97,141.96,1e-08]
[1763635006316,7.04374163,141.97,141.96,0.70000001]
[1763635007024,7.04344477,141.98,141.96,0.70000001]
[1763635008510,11.21306238,141.98,141.96,1e-08]
[1763635009121,11.21306238,141.98,141.96,0.70000001]
[1763635009725,7.04344477,141.98,141.96,0.70000001]
[1763635012530,18.49178464,141.99,141.96,4.86961762]
[1763635012729,18.49178464,141.99,141.96,0.70000001]
[1763635012905,18.49178464,141.99,141.97,0.72]
[1763635014926,22.66140225,141.99,141.96,1e-08]
[1763635015223,36.09865836,141.99,141.98,0.72]
[1763635015615,36.09865836,141.99,141.97,0.72]
[1763635021430,11.44882769,141.99,141.97,0.72]
[1763635021620,1.66,141.99,141.97,0.72]
[1763635022209,11.44882769,142.01,141.97,11.93334967]
[1763635022542,18.49061509,142.01,141.97,11.93334967]
[1763635022750,18.49061509,142.01,141.98,0.72]
[1763635023748,40.26462675,142.01,141.98,0.72]
[1763635024123,36.09500914,142.01,141.98,0.72]
[1763635025849,18.49061509,142.01,141.98,0.72]
[1763635026418,4.16961761,141.99,141.96,1e-08]
[1763635026613,9.78882769,141.98,141.96,1e-08]
[1763635026818,13.9584453,141.98,141.96,1e-08]
[1763635027130,13.9584453,141.98,141.96,0.72000001]
[1763635027534,9.78882769,141.98,141.96,0.72000001]
[1763635028049,7.04374163,141.97,141.96,0.72000001]
[1763635030346,8.70374163,141.97,141.96,1e-08]
[1763635031642,8.70374163,141.97,141.96,0.72000001]
[1763635033348,8.70374163,141.97,141.96,1e-08]
[1763635033849,9.41374163,141.97,141.96,1e-08]
[1763635034053,8.70374163,141.97,141.96,1e-08]
[1763635038927,21.87526538,141.97,141.96,1e-08]
[1763635041735,16.83256932,141.97,141.96,1e-08]
[1763635041946,18.49256932,141.97,141.96,1e-08]
[1763635042936,16.83256932,141.97,141.96,1e-08]
[1763635043258,18.49256932,141.97,141.96,1e-08]
[1763635043657,17.60807319,141.99,141.96,3.35269607]
[1763635043950,8.70324552,141.98,141.96,0.68000001]
[1763635057081,9.35324552,141.98,141.96,1e-08]
[1763635057244,13.11152375,141.97,141.96,1e-08]
[1763635058852,20.15526538,141.97,141.96,1e-08]
[1763635059755,38.27622538,141.97,141.96,1e-08]
[1763635064985,37.62622538,141.97,141.96,1e-08]
[1763635066908,38.27622538,141.97,141.96,1e-08]
[1763635068164,41.09759727,141.97,141.96,1e-08]
[1763635073569,0.68,141.96,141.95,1e-08]
[1763635073785,14.80152375,141.96,141.95,1e-08]
[1763635074173,17.62309465,141.96,141.95,1e-08]
[1763635074484,28.31387889,141.96,141.95,1e-08]
[1763635074684,35.3581167,141.96,141.95,1e-08]
[1763635074895,12.46152375,141.92,141.91,0.1]
[1763635075077,14.12152375,141.92,141.91,0.1]
[1763635076175,21.16774697,141.92,141.91,0.1]
[1763635078606,11.44882769,141.95,141.91,3.49269606]
[1763635078988,38.77809296,141.95,141.92,0.72]
[1763635080406,36.1053969,141.95,141.92,0.72]
[1763635081086,2.67269606,141.96,141.93,2.67269606]
[1763635081087,7.04446431,141.96,141.93,2.67269606]
[1763635081287,8.70446431,141.96,141.93,2.67269606]
[1763635081586,8.70446431,141.96,141.94,0.72]
[1763635081986,29.6677549,141.96,141.93,0.72]
[1763635082185,12.46152375,141.95,141.93,0.72]
[1763635082397,8.70523037,141.94,141.93,0.72]
[1763635082579,26.31830631,141.94,141.91,0.1]
[1763635082784,26.31830631,141.94,141.92,0.72]
[1763635082785,28.99100237,141.94,141.92,0.72]
[1763635083405,2.67269606,141.93,141.91,0.1]
[1763635083706,2.67269606,141.93,141.91,0.82]
[1763635084613,8.70622322,141.92,141.91,0.1]
[1763635085218,21.16774697,141.92,141.91,0.1]
[1763635085403,39.96870697,141.92,141.91,0.1]
[1763635085717,42.79107423,141.92,141.9,0.1]
[1763635085909,3.35269606,141.91,141.9,0.1]
[1763635086695,10.39941581,141.91,141.9,0.1]
[1763635090193,9.71941581,141.91,141.9,0.1]
[1763635091614,16.83554744,141.91,141.9,0.82]
[1763635091819,18.49554744,141.91,141.9,0.82]
[1763635095924,16.83554744,141.91,141.9,0.82]
[1763635096095,18.49554744,141.91,141.9,0.82]
[1763635097121,21.8482435,141.91,141.9,0.1]
[1763635097710,21.1682435,141.91,141.9,0.1]
[1763635098911,22.67681165,141.91,141.9,0.1]
[1763635099096,22.67681165,141.91,141.9,0.82]
[1763635099301,22.67681165,141.91,141.9,0.1]